[Event "*** Titled Tuesday 3|2 Blitz"]
[Site "Chess.com"]
[Date "2016.02.02"]
[Round "4"]
[White "BillieKimbah"]
[Black "MITerryble"]
[Result "0-1"]
[WhiteElo "2389"]
[BlackElo "2612"]
[TimeControl "180+2"]
[EndTime "11:53:11 PST"]
[Termination "MITerryble won on time"]

1. d4 {[%clk 0:03:00.6]} 1... e6 {[%clk 0:03:01.2]} 2. Nf3 {[%clk 0:02:59.6]}
2... Nf6 {[%clk 0:03:00.6]} 3. Bf4 {[%clk 0:02:59.6]} 3... b6 {[%clk 0:02:58.8]}
4. e3 {[%clk 0:03:00]} 4... Bb7 {[%clk 0:03:00.1]} 5. Nbd2 {[%clk 0:02:55.1]}
5... Be7 {[%clk 0:03:00.9]} 6. h3 {[%clk 0:02:55.1]} 6... O-O {[%clk 0:03:00.4]}
7. Bd3 {[%clk 0:02:55.8]} 7... d5 {[%clk 0:02:58.1]} 8. O-O {[%clk 0:02:53.8]}
8... Nbd7 {[%clk 0:02:57]} 9. Qe2 {[%clk 0:02:52.1]} 9... Ne4 {[%clk 0:02:52.8]}
10. c4 {[%clk 0:02:45.6]} 10... c5 {[%clk 0:02:45.9]} 11. cxd5 {[%clk
0:02:23.3]} 11... exd5 {[%clk 0:02:45.8]} 12. Ne5 {[%clk 0:02:15.1]} 12... Nxe5
{[%clk 0:02:44.3]} 13. Bxe5 {[%clk 0:02:15.5]} 13... Nxd2 {[%clk 0:02:21.2]} 14.
Qxd2 {[%clk 0:02:16.4]} 14... c4 {[%clk 0:02:19.5]} 15. Bc2 {[%clk 0:02:13]}
15... Bd6 {[%clk 0:02:09.9]} 16. Rad1 {[%clk 0:01:59]} 16... f6 {[%clk
0:02:06.7]} 17. Bxd6 {[%clk 0:01:58.2]} 17... Qxd6 {[%clk 0:02:07.5]} 18. f3
{[%clk 0:01:58.4]} 18... f5 {[%clk 0:02:06.3]} 19. g4 {[%clk 0:01:43.7]} 19...
Rae8 {[%clk 0:02:00.1]} 20. Bxf5 {[%clk 0:01:17.6]} 20... Qg3+ {[%clk
0:01:38.7]} 21. Qg2 {[%clk 0:01:17.5]} 21... Qxg2+ {[%clk 0:01:38.6]} 22. Kxg2
{[%clk 0:01:19]} 22... g6 {[%clk 0:01:28.2]} 23. Bd7 {[%clk 0:00:51.3]} 23...
Rxe3 {[%clk 0:01:23.3]} 24. Rde1 {[%clk 0:00:52.3]} 24... Rfxf3 {[%clk
0:01:20.6]} 25. Be6+ {[%clk 0:00:52.9]} 25... Kg7 {[%clk 0:01:04.7]} 26. Rxe3
{[%clk 0:00:48.3]} 26... Rxe3 {[%clk 0:01:05.8]} 27. Rf7+ {[%clk 0:00:48.8]}
27... Kg8 {[%clk 0:00:40.6]} 28. Rf6+ {[%clk 0:00:44.8]} 28... Kg7 {[%clk
0:00:31.8]} 29. Rf7+ {[%clk 0:00:46.1]} 29... Kh6 {[%clk 0:00:25.5]} 30. Bd7
{[%clk 0:00:31.5]} 30... Kg5 {[%clk 0:00:22.3]} 31. Rxh7 {[%clk 0:00:28.6]}
31... Kf4 {[%clk 0:00:21.2]} 32. h4 {[%clk 0:00:25.1]} 32... Re2+ {[%clk
0:00:19.6]} 33. Kf1 {[%clk 0:00:25.1]} 33... Rxb2 {[%clk 0:00:21.3]} 34. h5
{[%clk 0:00:22.7]} 34... gxh5 {[%clk 0:00:19.3]} 35. gxh5 {[%clk 0:00:23.9]}
35... c3 {[%clk 0:00:20.6]} 36. Ba4 {[%clk 0:00:24.4]} 36... Ba6+ {[%clk
0:00:21]} 37. Ke1 {[%clk 0:00:25]} 37... Rxa2 {[%clk 0:00:20.8]} 38. h6 {[%clk
0:00:20.2]} 38... Bd3 {[%clk 0:00:08.6]} 39. Rf7+ {[%clk 0:00:20.5]} 39... Ke3
{[%clk 0:00:09.8]} 40. h7 {[%clk 0:00:17.8]} 40... Ra1+ {[%clk 0:00:05.5]} 41.
Bd1 {[%clk 0:00:17.8]} 41... c2 {[%clk 0:00:04.5]} 42. Rf3+ {[%clk 0:00:18.1]}
42... Ke4 {[%clk 0:00:04.4]} 43. h8=Q {[%clk 0:00:04.3]} 43... cxd1=Q+ {[%clk
0:00:05]} 0-1

[Event "*** Titled Tuesday 3|2 Blitz"]
[Site "Chess.com"]
[Date "2016.02.02"]
[Round "4"]
[White "StellarChessPro"]
[Black "DrVitman"]
[Result "0-1"]
[WhiteElo "2218"]
[BlackElo "2227"]
[TimeControl "180+2"]
[EndTime "11:53:14 PST"]
[Termination "DrVitman won by checkmate"]

1. d4 {[%clk 0:03:01.9]} 1... Nf6 {[%clk 0:02:24.3]} 2. Bg5 {[%clk 0:03:02.4]}
2... c5 {[%clk 0:02:24.2]} 3. Bxf6 {[%clk 0:03:03.3]} 3... gxf6 {[%clk
0:02:24.8]} 4. d5 {[%clk 0:03:05.2]} 4... f5 {[%clk 0:02:24.1]} 5. e3 {[%clk
0:03:06]} 5... Bg7 {[%clk 0:02:25.3]} 6. c3 {[%clk 0:03:06.7]} 6... e5 {[%clk
0:02:26]} 7. Ne2 {[%clk 0:03:06.3]} 7... d6 {[%clk 0:02:24.6]} 8. Qc2 {[%clk
0:03:06.1]} 8... Qg5 {[%clk 0:02:17.3]} 9. h4 {[%clk 0:03:05.5]} 9... Qh6 {[%clk
0:02:18.1]} 10. Ng3 {[%clk 0:03:06]} 10... f4 {[%clk 0:02:19.2]} 11. Nf5 {[%clk
0:03:06.3]} 11... Qf6 {[%clk 0:02:00.1]} 12. Nxg7+ {[%clk 0:03:01.5]} 12... Qxg7
{[%clk 0:02:00.9]} 13. exf4 {[%clk 0:03:03.1]} 13... exf4 {[%clk 0:02:01.5]} 14.
Nd2 {[%clk 0:03:02]} 14... Qe5+ {[%clk 0:01:59.6]} 15. Qe4 {[%clk 0:03:00.3]}
15... Kd8 {[%clk 0:01:33.6]} 16. O-O-O {[%clk 0:02:58.9]} 16... Qxe4 {[%clk
0:01:32.2]} 17. Nxe4 {[%clk 0:03:00.8]} 17... Kc7 {[%clk 0:01:33.2]} 18. Bd3
{[%clk 0:02:57.8]} 18... Bg4 {[%clk 0:01:22.9]} 19. Rde1 {[%clk 0:02:55.3]}
19... Nd7 {[%clk 0:01:22.3]} 20. Bb5 {[%clk 0:02:51.6]} 20... Ne5 {[%clk
0:01:21.2]} 21. Nf6 {[%clk 0:02:44.2]} 21... Bf5 {[%clk 0:01:18]} 22. Kd2 {[%clk
0:02:35.1]} 22... a6 {[%clk 0:01:18.1]} 23. Bf1 {[%clk 0:02:35.8]} 23... h5
{[%clk 0:01:13.1]} 24. Be2 {[%clk 0:02:24.5]} 24... Bg4 {[%clk 0:01:13.7]} 25.
Nxg4 {[%clk 0:02:03.5]} 25... hxg4 {[%clk 0:01:15.6]} 26. g3 {[%clk 0:02:01.6]}
26... f3 {[%clk 0:01:14.6]} 27. Bd3 {[%clk 0:02:02]} 27... b5 {[%clk 0:01:10.5]}
28. Bf5 {[%clk 0:02:02.9]} 28... Rag8 {[%clk 0:01:05.7]} 29. b3 {[%clk
0:02:00.5]} 29... Rh5 {[%clk 0:01:05.9]} 30. Bc2 {[%clk 0:01:59.2]} 30... Re8
{[%clk 0:00:59.8]} 31. Re3 {[%clk 0:01:57.8]} 31... f5 {[%clk 0:00:58.3]} 32.
Rhe1 {[%clk 0:01:57.8]} 32... Re7 {[%clk 0:00:56.8]} 33. Kc1 {[%clk 0:01:52.7]}
33... Kd8 {[%clk 0:00:53.2]} 34. Kb2 {[%clk 0:01:53.5]} 34... a5 {[%clk
0:00:51.2]} 35. Kc1 {[%clk 0:01:54.5]} 35... b4 {[%clk 0:00:52]} 36. c4 {[%clk
0:01:54.8]} 36... Ke8 {[%clk 0:00:49.2]} 37. Kb2 {[%clk 0:01:55.6]} 37... Kf7
{[%clk 0:00:50.3]} 38. a3 {[%clk 0:01:57]} 38... Kf6 {[%clk 0:00:46.2]} 39. axb4
{[%clk 0:01:57.8]} 39... axb4 {[%clk 0:00:47.8]} 40. Ra1 {[%clk 0:01:55.8]}
40... f4 {[%clk 0:00:44.1]} 41. gxf4 {[%clk 0:01:56.4]} 41... Nxc4+ {[%clk
0:00:39.3]} 42. bxc4 {[%clk 0:01:55]} 42... Rxe3 {[%clk 0:00:40.8]} 43. fxe3
{[%clk 0:01:56.3]} 43... g3 {[%clk 0:00:42.3]} 44. Be4 {[%clk 0:01:54.5]} 44...
f2 {[%clk 0:00:41]} 45. Kc2 {[%clk 0:01:46.2]} 45... Rxh4 {[%clk 0:00:38.4]} 46.
Kd2 {[%clk 0:01:45.5]} 46... b3 {[%clk 0:00:27]} 47. Ke2 {[%clk 0:01:45.1]}
47... Rh8 {[%clk 0:00:20.3]} 48. Rb1 {[%clk 0:01:40.5]} 48... Ra8 {[%clk
0:00:14.9]} 49. Bg2 {[%clk 0:01:39.3]} 49... Ra2+ {[%clk 0:00:10.9]} 50. Kf3
{[%clk 0:01:40.5]} 50... Rc2 {[%clk 0:00:10.3]} 51. Kxg3 {[%clk 0:01:38.1]}
51... Rxc4 {[%clk 0:00:11.5]} 52. Kxf2 {[%clk 0:01:39.1]} 52... Rc2+ {[%clk
0:00:11.7]} 53. Kg3 {[%clk 0:01:40.2]} 53... c4 {[%clk 0:00:13.1]} 54. e4 {[%clk
0:01:38.9]} 54... b2 {[%clk 0:00:10.6]} 55. Bf1 {[%clk 0:01:28.9]} 55... c3
{[%clk 0:00:10.6]} 56. Bd3 {[%clk 0:01:29.3]} 56... Rd2 {[%clk 0:00:11.5]} 57.
Bc2 {[%clk 0:01:17.4]} 57... Rxc2 {[%clk 0:00:12.2]} 58. Rh1 {[%clk 0:01:18.2]}
58... Rc1 {[%clk 0:00:11.8]} 59. Rh6+ {[%clk 0:01:18.9]} 59... Kg7 {[%clk
0:00:13]} 60. Rxd6 {[%clk 0:01:19.7]} 60... b1=Q {[%clk 0:00:14.5]} 61. Kg4
{[%clk 0:01:21.2]} 61... Qxe4 {[%clk 0:00:14.9]} 62. Rd7+ {[%clk 0:01:21.9]}
62... Kf8 {[%clk 0:00:15.9]} 63. Kg5 {[%clk 0:01:22.3]} 63... Rg1+ {[%clk
0:00:15.7]} 64. Kf6 {[%clk 0:01:23.8]} 64... Rg6# {[%clk 0:00:15.9]} 0-1

[Event "*** Titled Tuesday 3|2 Blitz"]
[Site "Chess.com"]
[Date "2016.02.02"]
[Round "4"]
[White "kpio91"]
[Black "Saitama_Hero"]
[Result "1/2-1/2"]
[WhiteElo "2503"]
[BlackElo "2078"]
[TimeControl "180+2"]
[EndTime "11:53:17 PST"]
[Termination "Game drawn by agreement"]

1. e4 {[%clk 0:03:01.9]} 1... c5 {[%clk 0:02:59]} 2. c3 {[%clk 0:03:02.4]} 2...
g6 {[%clk 0:03:00.3]} 3. d4 {[%clk 0:03:02.4]} 3... cxd4 {[%clk 0:03:01.3]} 4.
cxd4 {[%clk 0:03:03.7]} 4... d5 {[%clk 0:03:02.9]} 5. e5 {[%clk 0:03:04.7]} 5...
Bg7 {[%clk 0:03:03.8]} 6. Nc3 {[%clk 0:03:05.6]} 6... Nc6 {[%clk 0:03:02.6]} 7.
Nf3 {[%clk 0:03:06]} 7... Bg4 {[%clk 0:03:02]} 8. Bb5 {[%clk 0:03:05.8]} 8...
Nh6 {[%clk 0:03:02.5]} 9. Bxh6 {[%clk 0:03:00.9]} 9... Bxh6 {[%clk 0:03:01.5]}
10. h3 {[%clk 0:03:02.6]} 10... Bxf3 {[%clk 0:02:59.4]} 11. Qxf3 {[%clk
0:03:03.3]} 11... e6 {[%clk 0:02:59.4]} 12. Bxc6+ {[%clk 0:02:59.5]} 12... bxc6
{[%clk 0:02:58.8]} 13. O-O {[%clk 0:03:01.1]} 13... O-O {[%clk 0:02:59.7]} 14.
Na4 {[%clk 0:03:01.6]} 14... f6 {[%clk 0:02:31.3]} 15. Nc5 {[%clk 0:02:44]}
15... fxe5 {[%clk 0:02:09.8]} 16. Qg4 {[%clk 0:02:16.5]} 16... Rf5 {[%clk
0:02:08.8]} 17. dxe5 {[%clk 0:02:13.9]} 17... Qe7 {[%clk 0:01:55]} 18. Nd3
{[%clk 0:02:09.6]} 18... c5 {[%clk 0:01:51.7]} 19. b3 {[%clk 0:02:10.5]} 19...
Rc8 {[%clk 0:01:38.5]} 20. f4 {[%clk 0:01:58.1]} 20... c4 {[%clk 0:01:36.6]} 21.
Nc1 {[%clk 0:01:43.4]} 21... Qc5+ {[%clk 0:01:33]} 22. Kh1 {[%clk 0:01:43.6]}
22... Rcf8 {[%clk 0:01:29.6]} 23. Ne2 {[%clk 0:01:41.1]} 23... c3 {[%clk
0:01:12.4]} 24. Ng3 {[%clk 0:01:22.6]} 24... Rxf4 {[%clk 0:01:08.8]} 25. Qxe6+
{[%clk 0:01:22.8]} 25... Kh8 {[%clk 0:01:08.3]} 26. Rxf4 {[%clk 0:01:22.1]}
26... Bxf4 {[%clk 0:01:05.4]} 27. Ne2 {[%clk 0:01:13.2]} 27... c2 {[%clk
0:01:04.4]} 28. Rf1 {[%clk 0:01:12.7]} 28... c1=Q {[%clk 0:01:02.8]} 29. Nxc1
{[%clk 0:01:12.9]} 29... Bxc1 {[%clk 0:01:03.5]} 30. Rf7 {[%clk 0:01:05.7]}
30... Rxf7 {[%clk 0:00:42.2]} 31. Qxf7 {[%clk 0:01:06.1]} 31... Bg5 {[%clk
0:00:39.1]} 32. Kh2 {[%clk 0:00:49.5]} 32... Qe7 {[%clk 0:00:33.8]} 33. Qxd5
{[%clk 0:00:50.4]} 33... Bf4+ {[%clk 0:00:34.7]} 34. Kg1 {[%clk 0:00:48.8]}
34... Qxe5 {[%clk 0:00:29.4]} 35. Qa8+ {[%clk 0:00:49.2]} 35... Kg7 {[%clk
0:00:30]} 36. Qxa7+ {[%clk 0:00:50]} 36... Kh6 {[%clk 0:00:31.2]} 37. Kf1 {[%clk
0:00:39.1]} 37... Be3 {[%clk 0:00:24.5]} 38. Qb7 {[%clk 0:00:29.4]} 38... Qf4+
{[%clk 0:00:21]} 39. Ke2 {[%clk 0:00:30.4]} 39... Qf2+ {[%clk 0:00:21.6]} 40.
Kd3 {[%clk 0:00:29.3]} 40... Qd2+ {[%clk 0:00:23.2]} 41. Kc4 {[%clk 0:00:30.3]}
41... Qc2+ {[%clk 0:00:14.2]} 42. Kb5 {[%clk 0:00:30.1]} 42... Qc5+ {[%clk
0:00:12.9]} 43. Ka4 {[%clk 0:00:27.1]} 43... Qd4+ {[%clk 0:00:11.8]} 44. b4
{[%clk 0:00:28]} 44... Qd1+ {[%clk 0:00:10.3]} 45. Ka5 {[%clk 0:00:29.1]} 45...
Qd8+ {[%clk 0:00:09.1]} 46. Ka6 {[%clk 0:00:26.2]} 46... Qd3+ {[%clk 0:00:08.9]}
47. Qb5 {[%clk 0:00:25.8]} 1/2-1/2

[Event "*** Titled Tuesday 3|2 Blitz"]
[Site "Chess.com"]
[Date "2016.02.02"]
[Round "4"]
[White "Jahonas"]
[Black "oskariot"]
[Result "0-1"]
[WhiteElo "2160"]
[BlackElo "2334"]
[TimeControl "180+2"]
[EndTime "11:53:26 PST"]
[Termination "oskariot won on time"]

1. e4 {[%clk 0:03:01.9]} 1... c5 {[%clk 0:03:00.3]} 2. Nf3 {[%clk 0:03:02.5]}
2... d6 {[%clk 0:03:00.7]} 3. Nc3 {[%clk 0:03:01]} 3... Nf6 {[%clk 0:02:58.8]}
4. Bb5+ {[%clk 0:03:00.9]} 4... Bd7 {[%clk 0:02:52.1]} 5. a4 {[%clk 0:03:01.8]}
5... a6 {[%clk 0:02:45.6]} 6. Bxd7+ {[%clk 0:03:01.7]} 6... Nbxd7 {[%clk
0:02:47.5]} 7. O-O {[%clk 0:03:02.2]} 7... g6 {[%clk 0:02:48.4]} 8. d4 {[%clk
0:03:02.4]} 8... cxd4 {[%clk 0:02:49.4]} 9. Nxd4 {[%clk 0:03:03.7]} 9... Bg7
{[%clk 0:02:51.3]} 10. Be3 {[%clk 0:03:03.3]} 10... O-O {[%clk 0:02:52.5]} 11.
Kh1 {[%clk 0:02:44.6]} 11... Rc8 {[%clk 0:02:53]} 12. f4 {[%clk 0:02:39.9]}
12... Nb6 {[%clk 0:02:22.9]} 13. e5 {[%clk 0:02:29.2]} 13... dxe5 {[%clk
0:02:21.2]} 14. fxe5 {[%clk 0:02:30.1]} 14... Nfd5 {[%clk 0:02:22.8]} 15. Nxd5
{[%clk 0:02:28.3]} 15... Nxd5 {[%clk 0:02:24.7]} 16. Bg1 {[%clk 0:01:43.6]}
16... Bxe5 {[%clk 0:02:21.9]} 17. Qe2 {[%clk 0:01:39.6]} 17... Bg7 {[%clk
0:02:16.7]} 18. Rad1 {[%clk 0:01:35.9]} 18... Qc7 {[%clk 0:00:57.9]} 19. c3
{[%clk 0:01:24.6]} 19... e5 {[%clk 0:00:53.1]} 20. Nb5 {[%clk 0:01:10.9]} 20...
axb5 {[%clk 0:00:53.9]} 21. Rxd5 {[%clk 0:01:10.8]} 21... bxa4 {[%clk
0:00:54.5]} 22. Qb5 {[%clk 0:01:08.4]} 22... Qc6 {[%clk 0:00:45.5]} 23. Ra1
{[%clk 0:01:02.5]} 23... Ra8 {[%clk 0:00:39.3]} 24. Rc5 {[%clk 0:00:54.1]} 24...
Qxb5 {[%clk 0:00:39.2]} 25. Rxb5 {[%clk 0:00:54.8]} 25... e4 {[%clk 0:00:33.8]}
26. Rxb7 {[%clk 0:00:52.9]} 26... f5 {[%clk 0:00:21.4]} 27. Rb4 {[%clk
0:00:44.4]} 27... Rfb8 {[%clk 0:00:20.8]} 28. Rbxa4 {[%clk 0:00:32.5]} 28...
Rxa4 {[%clk 0:00:21.7]} 29. Rxa4 {[%clk 0:00:34.1]} 29... Bf8 {[%clk 0:00:20.5]}
30. b4 {[%clk 0:00:33.6]} 30... f4 {[%clk 0:00:21.6]} 31. b5 {[%clk 0:00:32.7]}
31... Rxb5 {[%clk 0:00:21.7]} 32. Rxe4 {[%clk 0:00:33.7]} 32... Rb1 {[%clk
0:00:23]} 33. Rc4 {[%clk 0:00:17.8]} 33... g5 {[%clk 0:00:23.8]} 34. h3 {[%clk
0:00:18.4]} 34... Kf7 {[%clk 0:00:24.8]} 35. Kh2 {[%clk 0:00:17.9]} 35... Bd6
{[%clk 0:00:26]} 36. Bc5 {[%clk 0:00:18.9]} 36... Be5 {[%clk 0:00:26.8]} 37. Bd4
{[%clk 0:00:19.2]} 37... Bb8 {[%clk 0:00:26.6]} 38. Bf2 {[%clk 0:00:11.5]} 38...
Rb2 {[%clk 0:00:22]} 39. Kg1 {[%clk 0:00:11.6]} 39... Rb1+ {[%clk 0:00:20]} 40.
Kh2 {[%clk 0:00:12.2]} 40... f3+ {[%clk 0:00:20.8]} 41. g3 {[%clk 0:00:08.2]}
41... Rf1 {[%clk 0:00:20.2]} 42. Bd4 {[%clk 0:00:05.6]} 42... Re1 {[%clk
0:00:20.6]} 43. Rb4 {[%clk 0:00:04.3]} 43... Re2+ {[%clk 0:00:21.1]} 44. Kg1
{[%clk 0:00:05.6]} 44... Bxg3 {[%clk 0:00:22]} 45. Rb7+ {[%clk 0:00:04.3]} 45...
Kg6 {[%clk 0:00:23.3]} 46. Rb6+ {[%clk 0:00:04.2]} 46... Kh5 {[%clk 0:00:22]}
47. Rb1 {[%clk 0:00:03.3]} 47... Rg2+ {[%clk 0:00:18.7]} 48. Kf1 {[%clk
0:00:03.4]} 48... Rh2 {[%clk 0:00:19.7]} 49. Rb2 {[%clk 0:00:02.7]} 49... Rxb2
{[%clk 0:00:20.4]} 0-1

[Event "*** Titled Tuesday 3|2 Blitz"]
[Site "Chess.com"]
[Date "2016.02.02"]
[Round "4"]
[White "Hafez_Bakr"]
[Black "ethylalcohol"]
[Result "1/2-1/2"]
[WhiteElo "1739"]
[BlackElo "1730"]
[TimeControl "180+2"]
[EndTime "11:53:51 PST"]
[Termination "Game drawn by repetition"]

1. e4 {[%clk 0:02:58.1]} 1... e5 {[%clk 0:02:59]} 2. Nf3 {[%clk 0:02:45.8]} 2...
Nc6 {[%clk 0:02:59.7]} 3. Bb5 {[%clk 0:02:44.5]} 3... Nf6 {[%clk 0:03:00.3]} 4.
O-O {[%clk 0:02:43.9]} 4... Nxe4 {[%clk 0:03:01]} 5. d4 {[%clk 0:02:43]} 5...
Nd6 {[%clk 0:03:00.8]} 6. Bxc6 {[%clk 0:02:42.7]} 6... dxc6 {[%clk 0:03:02.7]}
7. dxe5 {[%clk 0:02:40.2]} 7... Nf5 {[%clk 0:03:03.6]} 8. Qxd8+ {[%clk
0:02:37.4]} 8... Kxd8 {[%clk 0:03:04.2]} 9. c4 {[%clk 0:02:31.1]} 9... h6 {[%clk
0:02:56.7]} 10. Nc3 {[%clk 0:02:30.1]} 10... Be6 {[%clk 0:02:42.8]} 11. b3
{[%clk 0:02:30.4]} 11... Ke8 {[%clk 0:01:59.2]} 12. Bf4 {[%clk 0:02:27.6]} 12...
Rd8 {[%clk 0:01:54.9]} 13. Rfd1 {[%clk 0:02:28.3]} 13... Be7 {[%clk 0:01:31.3]}
14. Rxd8+ {[%clk 0:02:27.8]} 14... Bxd8 {[%clk 0:01:28.9]} 15. Rd1 {[%clk
0:02:28.4]} 15... Be7 {[%clk 0:01:24.6]} 16. Nd4 {[%clk 0:02:22.9]} 16... Nxd4
{[%clk 0:01:21.7]} 17. Rxd4 {[%clk 0:02:21.9]} 17... Bc5 {[%clk 0:01:23.2]} 18.
Rd1 {[%clk 0:02:17.6]} 18... Ke7 {[%clk 0:01:23.6]} 19. Ne4 {[%clk 0:02:15.8]}
19... Bb4 {[%clk 0:01:14.7]} 20. Bc1 {[%clk 0:02:10.8]} 20... Rd8 {[%clk
0:00:52.1]} 21. Rxd8 {[%clk 0:02:10.2]} 21... Kxd8 {[%clk 0:00:52.9]} 22. a3
{[%clk 0:02:11.5]} 22... Be7 {[%clk 0:00:53.1]} 23. Bb2 {[%clk 0:02:03.1]} 23...
a5 {[%clk 0:00:50.4]} 24. f4 {[%clk 0:02:00.8]} 24... a4 {[%clk 0:00:47.4]} 25.
bxa4 {[%clk 0:01:42.1]} 25... Bxc4 {[%clk 0:00:46.7]} 26. Kf2 {[%clk 0:01:42.3]}
26... b6 {[%clk 0:00:40.8]} 27. Ke3 {[%clk 0:01:32.5]} 27... Bd5 {[%clk
0:00:39.1]} 28. g4 {[%clk 0:01:30.5]} 28... g6 {[%clk 0:00:35.8]} 29. h3 {[%clk
0:01:24.7]} 29... Bb3 {[%clk 0:00:24.4]} 30. Kd4 {[%clk 0:01:15.4]} 30... Bxa4
{[%clk 0:00:19.6]} 31. f5 {[%clk 0:01:12.4]} 31... c5+ {[%clk 0:00:12.4]} 32.
Kd3 {[%clk 0:01:10.1]} 32... Bb5+ {[%clk 0:00:09]} 33. Ke3 {[%clk 0:01:10.4]}
33... Bg5+ {[%clk 0:00:08.6]} 34. Nxg5 {[%clk 0:01:11]} 34... hxg5 {[%clk
0:00:09.7]} 35. fxg6 {[%clk 0:01:08.6]} 35... fxg6 {[%clk 0:00:10.4]} 36. Ke4
{[%clk 0:01:07.5]} 36... Bc6+ {[%clk 0:00:09.9]} 37. Ke3 {[%clk 0:01:07.4]}
37... Bg2 {[%clk 0:00:10.2]} 38. Kf2 {[%clk 0:01:00.8]} 38... Bxh3 {[%clk
0:00:10.6]} 39. Kg3 {[%clk 0:01:02.1]} 39... Bf1 {[%clk 0:00:11.4]} 40. Bc1
{[%clk 0:01:04]} 40... Kd7 {[%clk 0:00:11.8]} 41. Bxg5 {[%clk 0:01:04.1]} 41...
Ke6 {[%clk 0:00:12.8]} 42. Bf4 {[%clk 0:01:04.6]} 42... b5 {[%clk 0:00:13.8]}
43. Kf2 {[%clk 0:01:03.3]} 43... Bc4 {[%clk 0:00:12.5]} 44. Ke3 {[%clk
0:01:04.2]} 44... Bd5 {[%clk 0:00:13]} 45. Kd2 {[%clk 0:01:04.7]} 45... b4
{[%clk 0:00:12.4]} 46. axb4 {[%clk 0:01:04.9]} 46... cxb4 {[%clk 0:00:13.7]} 47.
Kd3 {[%clk 0:01:03.9]} 47... Bf3 {[%clk 0:00:13.1]} 48. g5 {[%clk 0:01:04]}
48... Bd5 {[%clk 0:00:09.7]} 49. Kd4 {[%clk 0:01:03]} 49... c6 {[%clk
0:00:09.3]} 50. Bd2 {[%clk 0:01:03.3]} 50... b3 {[%clk 0:00:09.2]} 51. Bc3
{[%clk 0:00:57.9]} 51... Kf5 {[%clk 0:00:09.8]} 52. Kc5 {[%clk 0:00:58.2]} 52...
Ke6 {[%clk 0:00:09.2]} 53. Kd4 {[%clk 0:00:56.2]} 53... Bf3 {[%clk 0:00:06.5]}
54. Ke3 {[%clk 0:00:55.3]} 54... Bd5 {[%clk 0:00:05.8]} 55. Kd4 {[%clk
0:00:55.8]} 55... Bf3 {[%clk 0:00:06.6]} 56. Kc5 {[%clk 0:00:56.3]} 56... Bd5
{[%clk 0:00:07.2]} 57. Kd4 {[%clk 0:00:56.1]} 57... Bf3 {[%clk 0:00:07.7]} 58.
Kc5 {[%clk 0:00:55.7]} 58... Bd5 {[%clk 0:00:08.6]} 59. Kd4 {[%clk 0:00:55.9]}
1/2-1/2

[Event "*** Titled Tuesday 3|2 Blitz"]
[Site "Chess.com"]
[Date "2016.02.02"]
[Round "4"]
[White "MateusViageiro"]
[Black "Parthenope"]
[Result "1-0"]
[WhiteElo "2165"]
[BlackElo "1730"]
[TimeControl "180+2"]
[EndTime "11:54:05 PST"]
[Termination "MateusViageiro won on time"]

1. e4 {[%clk 0:03:01.9]} 1... c5 {[%clk 0:03:00.6]} 2. Nf3 {[%clk 0:03:01.3]}
2... d6 {[%clk 0:03:01.7]} 3. d4 {[%clk 0:03:02.1]} 3... cxd4 {[%clk 0:03:03.1]}
4. Nxd4 {[%clk 0:03:01.3]} 4... Nf6 {[%clk 0:03:04.6]} 5. Nc3 {[%clk 0:03:02.6]}
5... a6 {[%clk 0:03:05.7]} 6. Be3 {[%clk 0:03:02.3]} 6... e6 {[%clk 0:03:05.8]}
7. f3 {[%clk 0:03:03]} 7... b5 {[%clk 0:03:05.8]} 8. Qd2 {[%clk 0:03:03.4]} 8...
Nbd7 {[%clk 0:03:02.8]} 9. O-O-O {[%clk 0:03:03.2]} 9... Bb7 {[%clk 0:02:47.3]}
10. Kb1 {[%clk 0:03:01.3]} 10... Rc8 {[%clk 0:02:45.8]} 11. g4 {[%clk
0:03:00.5]} 11... h6 {[%clk 0:02:45.9]} 12. Rg1 {[%clk 0:03:00.1]} 12... Nc5
{[%clk 0:02:01.4]} 13. h4 {[%clk 0:02:57.3]} 13... b4 {[%clk 0:01:59.2]} 14.
Nce2 {[%clk 0:02:55.3]} 14... a5 {[%clk 0:01:43.9]} 15. g5 {[%clk 0:02:55.8]}
15... hxg5 {[%clk 0:01:16.9]} 16. hxg5 {[%clk 0:02:54.1]} 16... Nfxe4 {[%clk
0:01:13.6]} 17. fxe4 {[%clk 0:02:53.8]} 17... Bxe4 {[%clk 0:01:14.5]} 18. Ng3
{[%clk 0:02:49.3]} 18... Bg6 {[%clk 0:01:14.7]} 19. Bb5+ {[%clk 0:02:48]} 19...
Nd7 {[%clk 0:01:07.2]} 20. Nc6 {[%clk 0:02:38]} 20... Qc7 {[%clk 0:01:07]} 21.
Ka1 {[%clk 0:02:15.4]} 21... Qb7 {[%clk 0:01:02.7]} 22. Ne5 {[%clk 0:01:52.4]}
22... Qxb5 {[%clk 0:00:38.1]} 23. Nxg6 {[%clk 0:01:52.8]} 23... fxg6 {[%clk
0:00:36.8]} 24. Rge1 {[%clk 0:01:45.6]} 24... Be7 {[%clk 0:00:35.7]} 25. Ne4
{[%clk 0:01:37.5]} 25... Rc6 {[%clk 0:00:28.6]} 26. Bd4 {[%clk 0:01:27.5]} 26...
Ne5 {[%clk 0:00:24.4]} 27. Bxe5 {[%clk 0:01:26.3]} 27... Qxe5 {[%clk 0:00:10.8]}
28. Nf6+ {[%clk 0:01:22.1]} 28... Bxf6 {[%clk 0:00:11.9]} 29. Rxe5 {[%clk
0:00:58.2]} 29... Bxe5 {[%clk 0:00:13.8]} 30. Qd3 {[%clk 0:00:47.4]} 30... Rh2
{[%clk 0:00:08.1]} 31. Qxg6+ {[%clk 0:00:45.2]} 31... Kd7 {[%clk 0:00:09.6]} 32.
Qf7+ {[%clk 0:00:42.1]} 32... Kc8 {[%clk 0:00:10]} 33. Qe8+ {[%clk 0:00:42.3]}
33... Kc7 {[%clk 0:00:08.7]} 34. Qe7+ {[%clk 0:00:42.6]} 34... Kb6 {[%clk
0:00:09.2]} 35. Qd8+ {[%clk 0:00:42]} 35... Ka6 {[%clk 0:00:09.4]} 36. Qa8+
{[%clk 0:00:41.2]} 36... Kb6 {[%clk 0:00:10.6]} 37. Qb8+ {[%clk 0:00:41.8]}
37... Ka6 {[%clk 0:00:11.9]} 38. Qa8+ {[%clk 0:00:28]} 38... Kb6 {[%clk
0:00:13]} 39. Rc1 {[%clk 0:00:16.6]} 39... Rcxc2 {[%clk 0:00:11.8]} 40. Qb8+
{[%clk 0:00:15]} 40... Ka6 {[%clk 0:00:10.8]} 41. Qa8+ {[%clk 0:00:14.7]} 41...
Kb6 {[%clk 0:00:12]} 42. Qb8+ {[%clk 0:00:14.9]} 42... Ka6 {[%clk 0:00:12.6]}
43. Qa8+ {[%clk 0:00:14.5]} 43... Kb6 {[%clk 0:00:09.9]} 44. Rxc2 {[%clk
0:00:15.3]} 44... Rxc2 {[%clk 0:00:09.1]} 45. Qd8+ {[%clk 0:00:14.2]} 45... Ka6
{[%clk 0:00:07.3]} 46. Kb1 {[%clk 0:00:15.1]} 46... Rxb2+ {[%clk 0:00:06.7]} 47.
Kc1 {[%clk 0:00:16.1]} 47... a4 {[%clk 0:00:03.7]} 48. Qc8+ {[%clk 0:00:14.5]}
48... Kb6 {[%clk 0:00:03.6]} 49. Qd8+ {[%clk 0:00:14.5]} 49... Kb5 {[%clk
0:00:02.4]} 50. Qd7+ {[%clk 0:00:14.5]} 1-0